[Event "Late-Titled-Tuesday-Blitz-March-19-2024"]
[Site "Chess.com"]
[Date "2024.03.19"]
[Round "8"]
[White "Koalaskakistis"]
[Black "Navyblue1"]
[Result "1/2-1/2"]
[WhiteElo "2461"]
[BlackElo "2212"]
[TimeControl "180+1"]
[EndTime "15:26:05 PDT"]
[Termination "Game drawn by repetition"]

1. d4 {[%clk 0:03:00.9]} 1... Nf6 {[%clk 0:02:56.8]} 2. Nc3 {[%clk 0:02:59.2]}
2... d5 {[%clk 0:02:54.9]} 3. Bf4 {[%clk 0:02:58.9]} 3... c6 {[%clk 0:02:54.3]}
4. e3 {[%clk 0:02:57.5]} 4... Bf5 {[%clk 0:02:49.9]} 5. Nf3 {[%clk 0:02:57.3]}
5... h6 {[%clk 0:02:49.3]} 6. Ne5 {[%clk 0:02:51.9]} 6... Nbd7 {[%clk
0:02:46.9]} 7. Bd3 {[%clk 0:02:46.6]} 7... Bxd3 {[%clk 0:02:46.1]} 8. Qxd3
{[%clk 0:02:46]} 8... e6 {[%clk 0:02:42.2]} 9. O-O {[%clk 0:02:44.2]} 9... Be7
{[%clk 0:02:38]} 10. e4 {[%clk 0:02:33.8]} 10... dxe4 {[%clk 0:02:37.3]} 11.
Nxe4 {[%clk 0:02:33.1]} 11... Nxe5 {[%clk 0:02:28.8]} 12. Bxe5 {[%clk 0:02:29]}
12... O-O {[%clk 0:02:28.2]} 13. c3 {[%clk 0:02:22.8]} 13... Nxe4 {[%clk
0:02:23.1]} 14. Qxe4 {[%clk 0:02:21.6]} 14... Qd5 {[%clk 0:02:03.5]} 15. Qxd5
{[%clk 0:02:20.3]} 15... cxd5 {[%clk 0:02:02.4]} 16. f3 {[%clk 0:02:13.5]} 16...
Rfc8 {[%clk 0:02:00.3]} 17. Rfe1 {[%clk 0:02:08]} 17... b5 {[%clk 0:01:57]} 18.
Rac1 {[%clk 0:01:59.8]} 18... a5 {[%clk 0:01:50.4]} 19. Bf4 {[%clk 0:01:55.8]}
19... Rc6 {[%clk 0:01:46.3]} 20. a3 {[%clk 0:01:51.3]} 20... Rac8 {[%clk
0:01:45.1]} 21. Bd2 {[%clk 0:01:50.2]} 21... Bf6 {[%clk 0:01:33.8]} 22. Kf2
{[%clk 0:01:43.3]} 22... b4 {[%clk 0:01:10.2]} 23. axb4 {[%clk 0:01:39.7]} 23...
axb4 {[%clk 0:01:09.4]} 24. Ke3 {[%clk 0:01:32.8]} 24... bxc3 {[%clk 0:01:06.8]}
25. Rxc3 {[%clk 0:01:24.7]} 25... Rc4 {[%clk 0:00:57.3]} 26. Rxc4 {[%clk
0:01:12.4]} 26... Rxc4 {[%clk 0:00:55.9]} 27. Bc3 {[%clk 0:01:12.1]} 27... Be7
{[%clk 0:00:45.4]} 28. Kd3 {[%clk 0:01:07.3]} 28... Rc7 {[%clk 0:00:44.7]} 29.
Rb1 {[%clk 0:01:04.3]} 29... Rb7 {[%clk 0:00:42.9]} 30. Ra1 {[%clk 0:01:00.3]}
30... Bb4 {[%clk 0:00:34.7]} 31. Bxb4 {[%clk 0:00:59]} 31... Rxb4 {[%clk
0:00:34.2]} 32. Kc3 {[%clk 0:00:59.5]} 32... Rc4+ {[%clk 0:00:34.2]} 33. Kd3
{[%clk 0:00:58.6]} 33... Rb4 {[%clk 0:00:34.4]} 34. Kc3 {[%clk 0:00:58.2]} 34...
Rc4+ {[%clk 0:00:34.3]} 35. Kd3 {[%clk 0:00:58.2]} 35... Rb4 {[%clk 0:00:34.5]}
1/2-1/2

[Event "Late-Titled-Tuesday-Blitz-March-19-2024"]
[Site "Chess.com"]
[Date "2024.03.19"]
[Round "8"]
[White "VanRommel28"]
[Black "aistrel"]
[Result "0-1"]
[WhiteElo "2508"]
[BlackElo "2651"]
[TimeControl "180+1"]
[EndTime "15:26:07 PDT"]
[Termination "aistrel won by resignation"]

1. Nf3 {[%clk 0:02:37.5]} 1... d5 {[%clk 0:02:59]} 2. b3 {[%clk 0:02:33.3]} 2...
Bf5 {[%clk 0:02:50.8]} 3. Bb2 {[%clk 0:02:31.6]} 3... Nc6 {[%clk 0:02:47.7]} 4.
d3 {[%clk 0:02:30.2]} 4... f6 {[%clk 0:02:45.5]} 5. Nbd2 {[%clk 0:02:24.3]} 5...
e5 {[%clk 0:02:45.7]} 6. e4 {[%clk 0:02:24.5]} 6... Bg4 {[%clk 0:02:42.4]} 7. h3
{[%clk 0:02:24.2]} 7... Bh5 {[%clk 0:02:40.9]} 8. g4 {[%clk 0:02:20.1]} 8... Bf7
{[%clk 0:02:38.6]} 9. Bg2 {[%clk 0:02:19.4]} 9... h5 {[%clk 0:02:37.3]} 10. a3
{[%clk 0:02:12.8]} 10... hxg4 {[%clk 0:02:34.4]} 11. hxg4 {[%clk 0:02:12.5]}
11... Rxh1+ {[%clk 0:02:35.3]} 12. Bxh1 {[%clk 0:02:13.4]} 12... Qd7 {[%clk
0:02:35.5]} 13. Nh2 {[%clk 0:01:58.2]} 13... O-O-O {[%clk 0:02:34.5]} 14. exd5
{[%clk 0:01:53.7]} 14... Bxd5 {[%clk 0:02:35.4]} 15. Bxd5 {[%clk 0:01:54]} 15...
Qxd5 {[%clk 0:02:35.6]} 16. Qf3 {[%clk 0:01:54.7]} 16... Qa5 {[%clk 0:02:29.5]}
17. b4 {[%clk 0:01:51.6]} 17... Qa4 {[%clk 0:02:20.4]} 18. O-O-O {[%clk
0:01:41.2]} 18... Nge7 {[%clk 0:02:11.5]} 19. Qe4 {[%clk 0:01:28]} 19... Nd5
{[%clk 0:02:07.4]} 20. c4 {[%clk 0:01:23.2]} 20... Ndxb4 {[%clk 0:01:53.2]} 21.
axb4 {[%clk 0:01:23.5]} 21... Nxb4 {[%clk 0:01:36.5]} 22. d4 {[%clk 0:01:23.1]}
22... Na2+ {[%clk 0:01:36.9]} 23. Kb1 {[%clk 0:01:22.3]} 23... Qxd1+ {[%clk
0:01:36.3]} 24. Kxa2 {[%clk 0:01:22.7]} 24... Qxd2 {[%clk 0:01:34.5]} 25. Nf3
{[%clk 0:01:22.4]} 25... Qa5+ {[%clk 0:01:27.4]} 26. Kb1 {[%clk 0:01:21.6]}
26... Ba3 {[%clk 0:01:25]} 27. dxe5 {[%clk 0:01:05.1]} 27... Qb4 {[%clk
0:01:23.9]} 28. Qc2 {[%clk 0:01:00.4]} 28... Rd3 {[%clk 0:01:14.4]} 29. exf6
{[%clk 0:00:25.2]} 29... gxf6 {[%clk 0:01:15.3]} 30. Nd4 {[%clk 0:00:15.2]}
30... Rxd4 {[%clk 0:01:10.9]} 31. Qf5+ {[%clk 0:00:15.2]} 31... Kb8 {[%clk
0:01:10.6]} 0-1

[Event "Late-Titled-Tuesday-Blitz-March-19-2024"]
[Site "Chess.com"]
[Date "2024.03.19"]
[Round "8"]
[White "PapaieDudu"]
[Black "yaguigor"]
[Result "0-1"]
[WhiteElo "2462"]
[BlackElo "2580"]
[TimeControl "180+1"]
[EndTime "15:26:07 PDT"]
[Termination "yaguigor won on time"]

1. Nf3 {[%clk 0:02:50]} 1... d5 {[%clk 0:02:58.3]} 2. d4 {[%clk 0:02:48.7]} 2...
Nf6 {[%clk 0:02:57.8]} 3. c4 {[%clk 0:02:48.9]} 3... c6 {[%clk 0:02:57.5]} 4.
Nc3 {[%clk 0:02:49.5]} 4... e6 {[%clk 0:02:56.9]} 5. Bg5 {[%clk 0:02:49.4]} 5...
dxc4 {[%clk 0:02:57]} 6. a4 {[%clk 0:02:49.3]} 6... Bb4 {[%clk 0:02:55.6]} 7. e3
{[%clk 0:02:46.3]} 7... b5 {[%clk 0:02:54.5]} 8. Be2 {[%clk 0:02:44]} 8... a6
{[%clk 0:02:52]} 9. O-O {[%clk 0:02:44.3]} 9... Bb7 {[%clk 0:02:51.7]} 10. Ne5
{[%clk 0:02:44]} 10... Be7 {[%clk 0:02:49.1]} 11. f4 {[%clk 0:02:42.3]} 11...
Nd5 {[%clk 0:02:46.3]} 12. f5 {[%clk 0:02:17.1]} 12... Bxg5 {[%clk 0:02:43.4]}
13. fxe6 {[%clk 0:02:11.1]} 13... O-O {[%clk 0:02:23.4]} 14. Nxf7 {[%clk
0:02:09.3]} 14... Bxe3+ {[%clk 0:02:21.3]} 15. Kh1 {[%clk 0:02:09.4]} 15... Qe7
{[%clk 0:02:14.8]} 16. Nxd5 {[%clk 0:02:08.2]} 16... cxd5 {[%clk 0:02:14.2]} 17.
Bg4 {[%clk 0:02:07.6]} 17... Nc6 {[%clk 0:02:11.3]} 18. Qf3 {[%clk 0:01:56.5]}
18... Bxd4 {[%clk 0:02:07.3]} 19. Qxd5 {[%clk 0:01:52.7]} 19... Bxb2 {[%clk
0:01:59.2]} 20. Rab1 {[%clk 0:01:30.3]} 20... Ne5 {[%clk 0:01:58.4]} 21. Qd1
{[%clk 0:01:11.2]} 21... Nxg4 {[%clk 0:01:50.6]} 22. Qxg4 {[%clk 0:00:58.7]}
22... Bf6 {[%clk 0:01:41.7]} 23. axb5 {[%clk 0:00:53.7]} 23... Bd5 {[%clk
0:01:32.6]} 24. bxa6 {[%clk 0:00:42.4]} 24... Qxe6 {[%clk 0:01:26.2]} 25. Nh6+
{[%clk 0:00:36.3]} 25... Kh8 {[%clk 0:01:25.3]} 26. Nf5 {[%clk 0:00:02.1]} 26...
Be4 {[%clk 0:01:16.5]} 0-1

[Event "Late-Titled-Tuesday-Blitz-March-19-2024"]
[Site "Chess.com"]
[Date "2024.03.19"]
[Round "8"]
[White "SnekkerAndersen"]
[Black "stepanosinovsky"]
[Result "0-1"]
[WhiteElo "2687"]
[BlackElo "2365"]
[TimeControl "180+1"]
[EndTime "15:26:09 PDT"]
[Termination "stepanosinovsky won by checkmate"]

1. d4 {[%clk 0:03:00.9]} 1... Nf6 {[%clk 0:02:59.5]} 2. Bf4 {[%clk 0:03:01]}
2... g6 {[%clk 0:02:59.3]} 3. Nc3 {[%clk 0:02:43.4]} 3... Bg7 {[%clk 0:02:57.2]}
4. e4 {[%clk 0:02:43.6]} 4... O-O {[%clk 0:02:57.4]} 5. Qd2 {[%clk 0:02:42.4]}
5... d6 {[%clk 0:02:54.5]} 6. O-O-O {[%clk 0:02:42.3]} 6... Nc6 {[%clk
0:02:53.7]} 7. Nf3 {[%clk 0:02:42.7]} 7... Bg4 {[%clk 0:02:37.2]} 8. h3 {[%clk
0:02:39.9]} 8... Bxf3 {[%clk 0:02:33.1]} 9. gxf3 {[%clk 0:02:40.8]} 9... Nxd4
{[%clk 0:01:47.6]} 10. Qxd4 {[%clk 0:02:39.1]} 10... e5 {[%clk 0:01:47.3]} 11.
Bxe5 {[%clk 0:02:36.9]} 11... dxe5 {[%clk 0:01:48.2]} 12. Qxe5 {[%clk 0:02:37]}
12... Nh5 {[%clk 0:00:51.3]} 13. Qc5 {[%clk 0:02:30.4]} 13... Qf6 {[%clk
0:00:47.7]} 14. Qe3 {[%clk 0:02:20.8]} 14... c6 {[%clk 0:00:42.5]} 15. Kb1
{[%clk 0:02:20.7]} 15... Nf4 {[%clk 0:00:39.6]} 16. Bc4 {[%clk 0:02:19.3]} 16...
b5 {[%clk 0:00:38.8]} 17. Bb3 {[%clk 0:02:19.6]} 17... a5 {[%clk 0:00:39.2]} 18.
a3 {[%clk 0:02:18.4]} 18... a4 {[%clk 0:00:34.8]} 19. Ba2 {[%clk 0:01:47.7]}
19... Qe5 {[%clk 0:00:32.7]} 20. Qd2 {[%clk 0:01:23.8]} 20... b4 {[%clk
0:00:19.9]} 21. axb4 {[%clk 0:01:23.8]} 21... a3 {[%clk 0:00:19.9]} 22. Qd6
{[%clk 0:01:13.3]} 22... axb2 {[%clk 0:00:19.9]} 23. Qxe5 {[%clk 0:01:13.1]}
23... Bxe5 {[%clk 0:00:20.8]} 24. b5 {[%clk 0:00:58.6]} 24... Bxc3 {[%clk
0:00:18.8]} 25. bxc6 {[%clk 0:00:58.8]} 25... Be5 {[%clk 0:00:18]} 26. Bc4
{[%clk 0:00:57.8]} 26... Ra1# {[%clk 0:00:17.3]} 0-1

[Event "Late-Titled-Tuesday-Blitz-March-19-2024"]
[Site "Chess.com"]
[Date "2024.03.19"]
[Round "8"]
[White "Kavyev_Ruslan"]
[Black "Roedor"]
[Result "0-1"]
[WhiteElo "2439"]
[BlackElo "2327"]
[TimeControl "180+1"]
[EndTime "15:26:10 PDT"]
[Termination "Roedor won by resignation"]

1. d4 {[%clk 0:03:00.9]} 1... Nf6 {[%clk 0:02:52.5]} 2. c4 {[%clk 0:03:01.2]}
2... g6 {[%clk 0:02:52.4]} 3. Nf3 {[%clk 0:03:01.6]} 3... Bg7 {[%clk 0:02:52.4]}
4. g3 {[%clk 0:03:02.3]} 4... O-O {[%clk 0:02:52.2]} 5. Bg2 {[%clk 0:03:02.9]}
5... d6 {[%clk 0:02:52.7]} 6. O-O {[%clk 0:03:03.4]} 6... Nc6 {[%clk 0:02:53.3]}
7. d5 {[%clk 0:02:46.5]} 7... Na5 {[%clk 0:02:51.4]} 8. Nfd2 {[%clk 0:02:39.8]}
8... c5 {[%clk 0:02:49.6]} 9. Nc3 {[%clk 0:02:31.5]} 9... a6 {[%clk 0:02:44]}
10. e4 {[%clk 0:02:29.3]} 10... Rb8 {[%clk 0:02:42.8]} 11. a4 {[%clk 0:02:28.1]}
11... e5 {[%clk 0:02:39.1]} 12. dxe6 {[%clk 0:02:02]} 12... Bxe6 {[%clk
0:02:35.9]} 13. Nd5 {[%clk 0:02:00.6]} 13... b5 {[%clk 0:02:27.1]} 14. axb5
{[%clk 0:01:57.6]} 14... axb5 {[%clk 0:02:28]} 15. cxb5 {[%clk 0:01:38.8]} 15...
Bxd5 {[%clk 0:02:22.4]} 16. exd5 {[%clk 0:01:39.7]} 16... Rxb5 {[%clk 0:02:21]}
17. Qa4 {[%clk 0:01:35.8]} 17... Qb6 {[%clk 0:02:10.8]} 18. Nc4 {[%clk
0:01:32.7]} 18... Nxc4 {[%clk 0:02:09.3]} 19. Qxc4 {[%clk 0:01:33.6]} 19... Nd7
{[%clk 0:02:01.4]} 20. Re1 {[%clk 0:01:17.7]} 20... Ne5 {[%clk 0:01:57.5]} 21.
Qc2 {[%clk 0:01:04.3]} 21... c4 {[%clk 0:01:52.7]} 22. Be3 {[%clk 0:00:43.1]}
22... Rxb2 {[%clk 0:01:50.9]} 23. Bxb6 {[%clk 0:00:40]} 23... Rxc2 {[%clk
0:01:50.6]} 24. Bc7 {[%clk 0:00:40]} 24... Nd3 {[%clk 0:01:48]} 25. Re7 {[%clk
0:00:32.2]} 25... Bxa1 {[%clk 0:01:46.3]} 26. Bxd6 {[%clk 0:00:25.7]} 26... Rd8
{[%clk 0:01:42.6]} 27. Ba3 {[%clk 0:00:24.3]} 27... Ra2 {[%clk 0:01:34.3]} 28.
d6 {[%clk 0:00:16.4]} 28... Rxa3 {[%clk 0:01:30.4]} 29. d7 {[%clk 0:00:16.9]}
29... Kf8 {[%clk 0:01:27.5]} 30. Re2 {[%clk 0:00:09.9]} 30... Rxd7 {[%clk
0:01:23.7]} 31. Bh3 {[%clk 0:00:10.8]} 31... Rd8 {[%clk 0:01:20]} 32. Rc2 {[%clk
0:00:11.3]} 32... c3 {[%clk 0:01:19.3]} 33. Kg2 {[%clk 0:00:12]} 33... Ne1+
{[%clk 0:01:19.2]} 0-1

[Event "Late-Titled-Tuesday-Blitz-March-19-2024"]
[Site "Chess.com"]
[Date "2024.03.19"]
[Round "8"]
[White "ExtremeLearner"]
[Black "NovakRatko"]
[Result "1-0"]
[WhiteElo "2554"]
[BlackElo "2420"]
[TimeControl "180+1"]
[EndTime "15:26:12 PDT"]
[Termination "ExtremeLearner won on time"]

1. d4 {[%clk 0:03:00.9]} 1... d5 {[%clk 0:02:52.1]} 2. c4 {[%clk 0:03:01.2]}
2... c5 {[%clk 0:02:51.1]} 3. cxd5 {[%clk 0:02:59.8]} 3... Qxd5 {[%clk
0:02:44.3]} 4. Nf3 {[%clk 0:02:58.3]} 4... c4 {[%clk 0:02:44.1]} 5. Nc3 {[%clk
0:02:57.8]} 5... Qd7 {[%clk 0:02:43.3]} 6. e4 {[%clk 0:02:56.6]} 6... b5 {[%clk
0:02:42.8]} 7. Ne5 {[%clk 0:02:47.7]} 7... Qb7 {[%clk 0:02:41.9]} 8. Qh5 {[%clk
0:02:35.4]} 8... g6 {[%clk 0:02:38]} 9. Qf3 {[%clk 0:02:35.4]} 9... Nf6 {[%clk
0:02:37.5]} 10. Bg5 {[%clk 0:02:28.5]} 10... Bg7 {[%clk 0:02:36.8]} 11. Nd5
{[%clk 0:02:24.7]} 11... O-O {[%clk 0:02:28.5]} 12. Be2 {[%clk 0:01:46]} 12...
Nxd5 {[%clk 0:02:27.4]} 13. exd5 {[%clk 0:01:45.4]} 13... f6 {[%clk 0:02:26.7]}
14. d6 {[%clk 0:01:39.9]} 14... Qb6 {[%clk 0:02:04.4]} 15. dxe7 {[%clk 0:01:33]}
15... Re8 {[%clk 0:01:59.2]} 16. Qd5+ {[%clk 0:01:14.9]} 16... Be6 {[%clk
0:00:40.2]} 17. Qxa8 {[%clk 0:01:12.8]} 17... fxg5 {[%clk 0:00:38.1]} 18. O-O
{[%clk 0:01:02.3]} 18... Qxd4 {[%clk 0:00:19.2]} 19. Nc6 {[%clk 0:00:58.9]}
19... Qb6 {[%clk 0:00:02.5]} 20. Nxb8 {[%clk 0:00:56.6]} 1-0

[Event "Late-Titled-Tuesday-Blitz-March-19-2024"]
[Site "Chess.com"]
[Date "2024.03.19"]
[Round "8"]
[White "GHANDEEVAM2003"]
[Black "Zhigalko_Sergei"]
[Result "1-0"]
[WhiteElo "3049"]
[BlackElo "2886"]
[TimeControl "180+1"]
[EndTime "15:26:17 PDT"]
[Termination "GHANDEEVAM2003 won on time"]

1. Nf3 {[%clk 0:03:00.9]} 1... b5 {[%clk 0:03:00.9]} 2. e3 {[%clk 0:02:59.3]}
2... a6 {[%clk 0:02:57.7]} 3. b3 {[%clk 0:02:57.1]} 3... Bb7 {[%clk 0:02:57.9]}
4. Bb2 {[%clk 0:02:57.8]} 4... e6 {[%clk 0:02:57.4]} 5. Be2 {[%clk 0:02:57.1]}
5... Nf6 {[%clk 0:02:57.6]} 6. O-O {[%clk 0:02:57.9]} 6... c5 {[%clk 0:02:55.8]}
7. c4 {[%clk 0:02:56.8]} 7... b4 {[%clk 0:02:48.4]} 8. d4 {[%clk 0:02:56.8]}
8... Be7 {[%clk 0:02:43]} 9. Nbd2 {[%clk 0:02:53.9]} 9... O-O {[%clk 0:02:42.6]}
10. Qc2 {[%clk 0:02:54]} 10... d6 {[%clk 0:02:32.5]} 11. dxc5 {[%clk 0:02:52.3]}
11... dxc5 {[%clk 0:02:32.7]} 12. Ng5 {[%clk 0:02:52.3]} 12... Nbd7 {[%clk
0:02:25.4]} 13. Rad1 {[%clk 0:02:50.3]} 13... h6 {[%clk 0:02:14.2]} 14. Nde4
{[%clk 0:02:22.8]} 14... hxg5 {[%clk 0:01:56.8]} 15. Nxg5 {[%clk 0:02:23.7]}
15... g6 {[%clk 0:01:22.3]} 16. Nxe6 {[%clk 0:02:21.8]} 16... Qb6 {[%clk
0:01:02.4]} 17. Nxf8 {[%clk 0:02:21.7]} 17... Nxf8 {[%clk 0:00:49.4]} 18. Bf3
{[%clk 0:02:08.6]} 18... Ne6 {[%clk 0:00:41.3]} 19. Bxb7 {[%clk 0:02:07.2]}
19... Qxb7 {[%clk 0:00:42.2]} 20. Rd2 {[%clk 0:02:01]} 20... Ne4 {[%clk
0:00:29.3]} 21. Rd3 {[%clk 0:02:01.2]} 21... Bf6 {[%clk 0:00:26.2]} 22. Bxf6
{[%clk 0:01:57.9]} 22... Nxf6 {[%clk 0:00:26.5]} 23. Rfd1 {[%clk 0:01:58.6]}
23... Qe4 {[%clk 0:00:19.8]} 24. Qb2 {[%clk 0:01:56.1]} 24... Kg7 {[%clk
0:00:17.5]} 25. f3 {[%clk 0:01:54.3]} 25... Qh4 {[%clk 0:00:12.3]} 26. Qe5
{[%clk 0:01:51.5]} 26... Rh8 {[%clk 0:00:11.3]} 27. Rd7 {[%clk 0:01:50.1]} 27...
Rh5 {[%clk 0:00:09.5]} 28. Qxe6 {[%clk 0:01:49.2]} 28... Qxh2+ {[%clk
0:00:07.9]} 29. Kf2 {[%clk 0:01:48.9]} 29... Rf5 {[%clk 0:00:02.5]} 30. Rxf7+
{[%clk 0:01:26.9]} 30... Kh6 {[%clk 0:00:02.6]} 31. Rxf6 {[%clk 0:01:27.6]}
31... Qh4+ {[%clk 0:00:03.2]} 32. Ke2 {[%clk 0:01:28.2]} 32... Rxf6 {[%clk
0:00:02.6]} 33. Qe7 {[%clk 0:01:22.4]} 33... Kg5 {[%clk 0:00:01.1]} 34. Rd6
{[%clk 0:01:20.1]} 1-0

[Event "Late-Titled-Tuesday-Blitz-March-19-2024"]
[Site "Chess.com"]
[Date "2024.03.19"]
[Round "8"]
[White "ATM622"]
[Black "CuteSheepCloud"]
[Result "0-1"]
[WhiteElo "2511"]
[BlackElo "2654"]
[TimeControl "180+1"]
[EndTime "15:26:17 PDT"]
[Termination "CuteSheepCloud won by resignation"]

1. d4 {[%clk 0:02:51.9]} 1... Nf6 {[%clk 0:02:59.7]} 2. c4 {[%clk 0:02:49.1]}
2... e6 {[%clk 0:02:59.7]} 3. g3 {[%clk 0:02:38.2]} 3... d5 {[%clk 0:03:00]} 4.
Bg2 {[%clk 0:02:38.4]} 4... Be7 {[%clk 0:03:00.6]} 5. Nf3 {[%clk 0:02:38.5]}
5... O-O {[%clk 0:03:01.5]} 6. O-O {[%clk 0:02:38.7]} 6... dxc4 {[%clk
0:03:02.4]} 7. Ne5 {[%clk 0:02:38.9]} 7... a6 {[%clk 0:03:03.3]} 8. Nxc4 {[%clk
0:02:38.4]} 8... Ra7 {[%clk 0:03:02.5]} 9. Nc3 {[%clk 0:02:37]} 9... b5 {[%clk
0:03:02.7]} 10. Ne5 {[%clk 0:02:36.5]} 10... Bb7 {[%clk 0:03:03.4]} 11. e3
{[%clk 0:02:29.6]} 11... c5 {[%clk 0:03:03]} 12. Bxb7 {[%clk 0:02:28]} 12...
Rxb7 {[%clk 0:03:03]} 13. Qf3 {[%clk 0:02:26.8]} 13... Rc7 {[%clk 0:03:03.1]}
14. dxc5 {[%clk 0:02:24.2]} 14... Rxc5 {[%clk 0:03:04]} 15. Rd1 {[%clk
0:02:18.6]} 15... Qc8 {[%clk 0:03:00.2]} 16. Nd3 {[%clk 0:01:51]} 16... Rf5
{[%clk 0:02:59.7]} 17. Qg2 {[%clk 0:01:47]} 17... b4 {[%clk 0:02:59.6]} 18. Ne4
{[%clk 0:01:47.1]} 18... Nxe4 {[%clk 0:02:54.2]} 19. Qxe4 {[%clk 0:01:47.1]}
19... a5 {[%clk 0:02:54.8]} 20. g4 {[%clk 0:01:28.7]} 20... Rd5 {[%clk
0:02:54.2]} 21. Qf3 {[%clk 0:01:17]} 21... Rfd8 {[%clk 0:02:52.7]} 22. e4 {[%clk
0:01:15.5]} 22... Rd4 {[%clk 0:02:52.2]} 23. Bf4 {[%clk 0:01:09.5]} 23... Qc2
{[%clk 0:02:50.9]} 24. Bxb8 {[%clk 0:00:58.1]} 24... Rxd3 {[%clk 0:02:44.9]} 25.
Rxd3 {[%clk 0:00:56.7]} 25... Rxd3 {[%clk 0:02:45.8]} 26. Qf4 {[%clk 0:00:55.5]}
26... Rd2 {[%clk 0:02:38.5]} 27. Ba7 {[%clk 0:00:44.1]} 27... h6 {[%clk
0:02:33]} 28. Be3 {[%clk 0:00:39.7]} 28... Re2 {[%clk 0:02:31.5]} 29. Qf3 {[%clk
0:00:36.3]} 29... Qxb2 {[%clk 0:02:29.3]} 30. Rd1 {[%clk 0:00:35.6]} 30... Qxa2
{[%clk 0:02:28.2]} 31. Rd7 {[%clk 0:00:33.1]} 31... Bf6 {[%clk 0:02:10.2]} 32.
Bxh6 {[%clk 0:00:22.6]} 32... Re1+ {[%clk 0:02:01.6]} 33. Kg2 {[%clk 0:00:22.6]}
33... Qe2 {[%clk 0:02:00.7]} 34. Qxe2 {[%clk 0:00:09.4]} 34... Rxe2 {[%clk
0:02:01.6]} 35. Bf4 {[%clk 0:00:08.7]} 35... a4 {[%clk 0:01:53.2]} 36. g5 {[%clk
0:00:08.4]} 36... Bc3 {[%clk 0:01:52.9]} 37. h4 {[%clk 0:00:05.7]} 37... g6
{[%clk 0:01:51.6]} 38. Kf3 {[%clk 0:00:04.5]} 38... Rc2 {[%clk 0:01:50.5]} 39.
Rc7 {[%clk 0:00:03.4]} 39... a3 {[%clk 0:01:49.9]} 40. Be5 {[%clk 0:00:03.2]}
40... Bxe5 {[%clk 0:01:49.9]} 41. Rxc2 {[%clk 0:00:03.1]} 41... b3 {[%clk
0:01:50.6]} 42. Rc8+ {[%clk 0:00:03.2]} 42... Kg7 {[%clk 0:01:50.6]} 43. h5
{[%clk 0:00:03.5]} 43... gxh5 {[%clk 0:01:51.5]} 44. Ra8 {[%clk 0:00:02.3]}
44... b2 {[%clk 0:01:50.5]} 45. g6 {[%clk 0:00:02.4]} 45... Kxg6 {[%clk
0:01:49.9]} 46. Rg8+ {[%clk 0:00:02.4]} 46... Kf6 {[%clk 0:01:50.4]} 47. Rb8
{[%clk 0:00:02.8]} 47... Bxb8 {[%clk 0:01:50]} 0-1

[Event "Late-Titled-Tuesday-Blitz-March-19-2024"]
[Site "Chess.com"]
[Date "2024.03.19"]
[Round "8"]
[White "McCarthyStone"]
[Black "andjela_djidjika"]
[Result "1-0"]
[WhiteElo "2362"]
[BlackElo "2132"]
[TimeControl "180+1"]
[EndTime "15:26:20 PDT"]
[Termination "McCarthyStone won by resignation"]

1. e4 {[%clk 0:02:59.8]} 1... c5 {[%clk 0:02:58.8]} 2. Nf3 {[%clk 0:02:57.5]}
2... d6 {[%clk 0:02:58.3]} 3. e5 {[%clk 0:02:53.1]} 3... dxe5 {[%clk 0:02:56.1]}
4. Nxe5 {[%clk 0:02:54]} 4... Nf6 {[%clk 0:02:53.1]} 5. Nc3 {[%clk 0:02:47.6]}
5... e6 {[%clk 0:02:47.3]} 6. g3 {[%clk 0:02:31.1]} 6... Bd6 {[%clk 0:02:41.4]}
7. Nc4 {[%clk 0:02:29.5]} 7... Be7 {[%clk 0:02:37.9]} 8. Bg2 {[%clk 0:02:27.4]}
8... O-O {[%clk 0:02:34.6]} 9. O-O {[%clk 0:02:27.5]} 9... Nc6 {[%clk
0:02:21.4]} 10. d3 {[%clk 0:02:27.6]} 10... a6 {[%clk 0:02:11.6]} 11. a4 {[%clk
0:02:27.6]} 11... Nb4 {[%clk 0:02:07.3]} 12. Re1 {[%clk 0:02:23.2]} 12... Nbd5
{[%clk 0:02:06.2]} 13. Bd2 {[%clk 0:02:20.3]} 13... Rb8 {[%clk 0:02:01.4]} 14.
a5 {[%clk 0:02:19.8]} 14... b5 {[%clk 0:01:47]} 15. axb6 {[%clk 0:02:19.3]}
15... Nxb6 {[%clk 0:01:47]} 16. Ne5 {[%clk 0:02:15.6]} 16... Nfd5 {[%clk
0:01:25.2]} 17. Nc6 {[%clk 0:02:13.6]} 17... Qc7 {[%clk 0:01:17.1]} 18. Nxd5
{[%clk 0:02:03.5]} 18... Nxd5 {[%clk 0:01:12.4]} 19. Bxd5 {[%clk 0:01:58.7]}
19... Bf6 {[%clk 0:00:59.2]} 20. Nxb8 {[%clk 0:01:46.7]} 20... exd5 {[%clk
0:00:50.5]} 21. Nxa6 {[%clk 0:01:43.6]} 21... Qc6 {[%clk 0:00:41.5]} 22. Nb8
{[%clk 0:01:08.5]} 22... Qb7 {[%clk 0:00:36.9]} 23. Bf4 {[%clk 0:01:07.2]} 23...
d4 {[%clk 0:00:35.5]} 24. Qe2 {[%clk 0:00:57.4]} 24... Bh3 {[%clk 0:00:32.7]}
25. Qe4 {[%clk 0:00:53.7]} 25... Qxb2 {[%clk 0:00:26.3]} 26. Bd6 {[%clk
0:00:47.8]} 26... Rc8 {[%clk 0:00:19.9]} 27. Qe8+ {[%clk 0:00:45.4]} 1-0